[Event "Seniors-LEM-65 Sachsen-Anhalt 2024"]
[Site "Magdeburg"]
[Date "2024.07.04"]
[Round "4.21"]
[White "Cordes, Lothar"]
[Black "Onasch, Gunnar"]
[Result "1-0"]
[ECO "D58"]
[WhiteElo "1858"]
[BlackElo "1949"]
[Annotator "NA RC"]
[PlyCount "129"]
[EventDate "2024.06.25"]
[EventType "swiss"]
[EventCountry "GER"]
[SourceTitle "playchess.com"]
[Source "ChessBase"]
[SourceQuality "1"]
[TimeControl "40/5400+30:1800+30"]

1. d4 {[%emt 1:31:00]} d5 {[%emt 1:31:00]} 2. c4 e6 {[%emt 0:00:30]} 3. Nc3 {[%emt 0:01:00]} Nf6 {[%emt 0:00:30]} 4. Bg5 {[%emt 0:00:30]} Be7 5. Nf3 O-O {[%emt 0:01:00]} 6. e3 h6 {[%emt 0:00:30]} 7. Bh4 {[%emt 0:01:30]} b6 8. Rc1 {[%emt 0:00:30]} Bb7 {[%emt 0:01:00]} 9. Bxf6 {[%emt 0:00:30]} Bxf6 {[%emt 0:00:30]} 10. cxd5 {[%emt 0:00:30]} exd5 {[%emt 0:00:30]} 11. Bd3 {[%emt 0:00:30]} c5 {[%emt 0:00:30]} 12. O-O {[%emt 0:00:30]} Nd7 {[%emt 0:00:30]} 13. Bb1 {[%emt 0:00:30]} Be7 {[%emt 0:00:30] D58: Queen's Gambit Declined: Tartakower Defence.} 14. dxc5 {[%emt 0:00:30]} Nxc5 {[%emt 0:00:30]} 15. Qc2 {[%emt 0:00:30]} g6 {[%emt 0:00:30]} 16. Rfd1 {[%emt 0:00:30]} Rc8 {[%emt 0:00:30]} 17. Nd4 {[%emt 0:00:30]} Qd7 {[%emt 0:00:30]} 18. b4 {[%emt 0:00:30]} Ne4 {[%emt 0:00:30]} 19. Qb3 {[%emt 0:00:30]} Rxc3 {[%emt 0:00:30]} 20. Rxc3 $11 Nxc3 {[%emt 0:00:30]} 21. Qxc3 {[%emt 0:01:00]} Rc8 {[%emt 0:00:30]} 22. Qb3 {[%emt 0:00:30]} a6 {[%emt 0:00:30]} 23. h3 {[%emt 0:00:30]} Rc7 {[%emt 0:00:30]} 24. Ne2 {[%emt 0:00:30]} Qb5 {[%emt 0:00:30]} 25. Nc3 {[%emt 0:00:30]} Qxb4 {[%emt 0:00:30]} 26. Nxd5 Bxd5 {[%emt 0:00:30]} 27. Qxd5 {[%emt 0:01:00]} Qc5 {[%emt 0:00:30]} 28. Qa8+ {[%emt 0:00:30]} Kg7 {[%emt 0:00:30]} 29. Qxa6 {[%emt 0:00:30]} b5 {[%emt 0:00:30]} 30. Qa5 {[%emt 0:00:30]} Ra7 {[%emt 0:00:30]} 31. Qd2 {[%emt 0:00:30]} Bf6 {[%emt 0:00:30]} 32. Rc1 {[%emt 0:00:30]} Qe7 {[%emt 0:00:30]} 33. Qd5 b4 {[%emt 0:00:30]} 34. Bd3 {[%emt 0:01:00]} Bc3 {[%emt 0:00:30]} 35. Bc4 {[%emt 0:00:30]} Rd7 {[%emt 0:00:30]} 36. Qf3 {[%emt 0:00:30]} Qc5 {[%emt 0:00:30]} 37. Bb3 {[%emt 0:00:30]} Qe7 {[%emt 0:00:30]} 38. a4 {[%emt 0:00:30]} Qe5 {[%emt 0:00:30]} 39. Rd1 {[%emt 0:00:30]} Rxd1+ {[%emt 0:00:30]} 40. Qxd1 Qc7 {[%emt 0:00:30]} 41. Qd5 {[%emt 0:31:00]} Be5 {[%emt 0:30:30]} 42. Qc4 {[%emt 0:00:30]} Qe7 {[%emt 0:00:30]} 43. a5 {[%emt 0:00:30]} Bb8 {[%emt 0:00:30]} 44. a6 {[%emt 0:00:30]} Ba7 {[%emt 0:00:30]} 45. Kf1 {[%emt 0:00:30]} Bc5 {[%emt 0:00:30]} 46. Ke2 {[%emt 0:00:30]} Kf8 {[%emt 0:00:30]} 47. Qd5 {[%emt 0:00:30]} Qa7 {[%emt 0:00:30]} 48. Qb7 {[%emt 0:00:30]} Qxb7 49. axb7 Bd6 {[%emt 0:01:00]} 50. Kd3 Ke7 51. Kc4 {[%emt 0:01:30]} f6 {[%emt 0:01:00]} 52. Kb5 {[%emt 0:00:30]} Kd7 {[%emt 0:00:30]} 53. Kb6 {[%emt 0:00:30]} Bb8 {[%emt 0:00:30]} 54. f4 {[%emt 0:00:30]} g5 {[%emt 0:00:30]} 55. g3 {[%emt 0:00:30]} Kd8 {[%emt 0:00:30]} 56. fxg5 {[%emt 0:00:30]} fxg5 {[%emt 0:00:30]} 57. e4 {[%emt 0:00:30]} Ke7 {[%emt 0:00:30]} 58. e5 {[%emt 0:00:30]} Kd8 {[%emt 0:00:30]} 59. e6 {[%emt 0:00:30]} Ke7 60. g4 {[%emt 0:00:30]} Kd8 {[%emt 0:01:00]} 61. Kc5 {[%emt 0:00:30]} Kc7 {[%emt 0:00:30]} 62. Kd5 {[%emt 0:00:30]} Kd8 {[%emt 0:00:30]} 63. Ke4 {[%emt 0:00:30]} Bd6 {[%emt 0:00:30]} 64. Kf5 {[%emt 0:00:30]} Kc7 {[%emt 0:00:30]} 65. Kf6 {[%emt 0:00:30]} 1-0

[Event "Seniors-LEM-65 Sachsen-Anhalt 2024"]
[Site "Magdeburg"]
[Date "2024.07.04"]
[Round "4.22"]
[White "Eberhardt, Michael"]
[Black "Wolff, Stefan"]
[Result "0-1"]
[ECO "B22"]
[WhiteElo "1801"]
[BlackElo "1956"]
[Annotator "NA RC"]
[PlyCount "68"]
[EventDate "2024.06.25"]
[EventType "swiss"]
[EventCountry "GER"]
[SourceTitle "playchess.com"]
[Source "ChessBase"]
[SourceQuality "1"]
[TimeControl "40/5400+30:1800+30"]

1. e4 {[%emt 0:03:40]} c5 {[%emt 0:00:06]} 2. c3 {[%emt 0:00:26]} d5 {[%emt 0:00:06]} 3. exd5 {[%emt 0:00:32]} Qxd5 {[%emt 0:00:05]} 4. d4 {[%emt 0:00:14]} Nc6 {[%emt 0:00:49]} 5. Nf3 {[%emt 0:00:21]} cxd4 {[%emt 0:00:28]} 6. cxd4 {[%emt 0:01:02]} e5 $14 {[%emt 0:00:20]} 7. Nc3 {[%emt 0:01:30]} Bb4 {[%emt 0:00:23]} 8. a3 {[%emt 0:02:57]} Bxc3+ {[%emt 0:01:46]} 9. bxc3 {[%emt 0:00:16]} e4 {[%emt 0:02:09]} 10. Nd2 {[%emt 0:03:39]} Nf6 {[%emt 0:02:49]} 11. Be2 {[%emt 0:01:04]} O-O {[%emt 0:01:44]} 12. O-O {[%emt 0:10:40]} b6 {[%emt 0:04:04]} 13. f3 {[%emt 0:00:21]} Nxd4 {[%emt 0:08:21]} 14. Bc4 {[%emt 0:04:56]} Qc5 {[%emt 0:00:31]} 15. Kh1 {[%emt 0:00:57]} Nxf3 {[%emt 0:10:50]} 16. gxf3 {[%emt 0:06:49]} e3 {[%emt 0:00:24]} 17. Be2 {[%emt 0:04:13]} Qxc3 {[%emt 0:14:43]} 18. Nb3 {[%emt 0:10:05]} Bf5 {[%emt 0:00:45]} 19. Bxe3 {[%emt 0:04:19]} Qxe3 {[%emt 0:02:11]} 20. Nd4 {[%emt 0:03:49]} Bh3 {[%emt 0:02:29]} 21. Re1 {[%emt 0:02:07]} Rad8 {[%emt 0:05:21]} 22. Bf1 {[%emt 0:02:08]} Qf4 {[%emt 0:01:03]} 23. Bxh3 {[%emt 0:01:33]} Rxd4 {[%emt 0:00:26]} 24. Qe2 {[%emt 0:02:19]} Rd2 {[%emt 0:00:28]} 25. Qe5 {[%emt 0:03:12]} Rxh2+ {[%emt 0:00:26]} 26. Kg1 {[%emt 0:00:31]} Qxe5 {[%emt 0:00:07]} 27. Rxe5 {[%emt 0:00:38]} Rxh3 {[%emt 0:00:07]} 28. Kg2 {[%emt 0:00:20]} Rh5 {[%emt 0:00:37]} 29. Re7 {[%emt 0:00:20]} Ra5 {[%emt 0:00:13]} 30. Rc1 {[%emt 0:00:55]} Nd5 {[%emt 0:01:56]} 31. Rd7 {[%emt 0:01:01]} g5 {[%emt 0:02:50]} 32. Kg3 {[%emt 0:01:22]} Kg7 {[%emt 0:02:18]} 33. Rd1 {[%emt 0:09:48]} Nf6 {[%emt 0:01:13]} 34. R7d6 {[%emt 0:01:27]} Rxa3 {[%emt 0:00:29]} 0-1

[Event "Seniors-LEM-65 Sachsen-Anhalt 2024"]
[Site "Magdeburg"]
[Date "2024.07.04"]
[Round "4.23"]
[White "Schmidt, Gerhard"]
[Black "Wolke, Reimund"]
[Result "1-0"]
[ECO "B14"]
[WhiteElo "2112"]
[BlackElo "1871"]
[Annotator "RC"]
[PlyCount "87"]
[EventDate "2024.06.25"]
[EventType "swiss"]
[EventCountry "GER"]
[SourceTitle "playchess.com"]
[Source "ChessBase"]
[SourceQuality "1"]
[TimeControl "40/5400+30:1800+30"]

1. d4 {[%emt 0:00:06]} Nf6 {[%emt 0:00:13]} 2. Nf3 {[%emt 0:00:33]} d5 {[%emt 0:00:45]} 3. c4 {[%emt 0:00:21]} e6 {[%emt 0:00:56]} 4. Nc3 {[%emt 0:00:35]} Be7 {[%emt 0:00:34]} 5. Bg5 {[%emt 0:00:22]} O-O {[%emt 0:01:09]} 6. e3 {[%emt 0:00:14]} c5 {[%emt 0:02:00]} 7. Be2 {[%emt 0:06:39]} Nc6 {[%emt 0:04:09]} 8. O-O {[%emt 0:10:20]} cxd4 {[%emt 0:08:38]} 9. exd4 {[%emt 0:02:16]} Bd7 {[%emt 0:08:54]} 10. a3 {[%emt 0:15:11]} Rc8 {[%emt 0:02:01]} 11. Rc1 {[%emt 0:08:54]} dxc4 {[%emt 0:08:21]} 12. Bxc4 {[%emt 0:00:20]} Nd5 {[%emt 0:05:57]} 13. Bxe7 {[%emt 0:09:46]} Ncxe7 {[%emt 0:00:21]} 14. Bxd5 {[%emt 0:02:06]} exd5 {[%emt 0:03:02]} 15. Qb3 {[%emt 0:07:18]} Bc6 {[%emt 0:04:54]} 16. Rfe1 {[%emt 0:03:05]} Qd6 {[%emt 0:03:48]} 17. Ne5 {[%emt 0:02:05]} Nf5 {[%emt 0:02:39]} 18. Qd1 {[%emt 0:00:42]} Rfe8 {[%emt 0:41:09]} 19. Qd3 {[%emt 0:01:52]} Qf6 {[%emt 0:00:00]} 20. b4 {[%emt 0:08:04]} Red8 {[%emt 0:00:00]} 21. b5 {[%emt 0:03:15]} Be8 {[%emt 0:00:00]} 22. Nxd5 {[%emt 0:00:55]} Qg5 {[%emt 0:00:00]} 23. Rxc8 {[%emt 0:02:02]} Rxc8 {[%emt 0:00:00]} 24. Qxf5 {[%emt 0:05:29]} Rc1 {[%emt 0:00:00]} 25. Nf3 {[%emt 0:01:39]} Rxe1+ {[%emt 0:00:00]} 26. Nxe1 {[%emt 0:00:03]} Qd8 {[%emt 0:00:00]} 27. h3 {[%emt 0:03:03]} Bxb5 {[%emt 0:00:00]} 28. Nc3 {[%emt 0:02:17]} Bd7 {[%emt 0:00:00]} 29. Qd5 {[%emt 0:00:25]} Qc8 {[%emt 0:00:00]} 30. Qc5 {[%emt 0:00:10]} Qe8 {[%emt 0:00:00]} 31. Nf3 {[%emt 0:00:07]} h6 {[%emt 0:00:00]} 32. Qxa7 {[%emt 0:00:15]} Qc8 {[%emt 0:00:00]} 33. Qc5 {[%emt 0:00:07]} Qb8 {[%emt 0:01:07]} 34. Ne5 {[%emt 0:00:41]} Be6 {[%emt 0:01:53]} 35. Nd5 {[%emt 0:01:35]} Qd8 {[%emt 0:00:54]} 36. Nf4 {[%emt 0:00:13]} Bf5 {[%emt 0:03:34]} 37. Nd5 {[%emt 0:01:43]} Be6 {[%emt 0:01:08]} 38. Ne3 {[%emt 0:00:34]} Qg5 {[%emt 0:00:09]} 39. Kf1 {[%emt 0:00:50]} f6 {[%emt 0:00:31]} 40. Qe7 {[%emt 0:01:24]} Ba2 {[%emt 0:01:09]} 41. Qe8+ {[%emt 0:31:03]} Kh7 {[%emt 0:30:09]} 42. Nf3 {[%emt 0:01:39]} Qf4 {[%emt 0:00:00]} 43. Qc8 {[%emt 0:00:00]} b5 {[%emt 0:00:00]} 44. Qc2+ {[%emt 0:00:00]} 1-0

[Event "Seniors-LEM-65 Sachsen-Anhalt 2024"]
[Site "Magdeburg"]
[Date "2024.07.04"]
[Round "4.24"]
[White "Gehrmann, Rudolf-Rainer"]
[Black "Dehning-Busse, Karsten"]
[Result "1-0"]
[ECO "A21"]
[WhiteElo "1980"]
[BlackElo "1867"]
[Annotator "NA RC"]
[PlyCount "93"]
[EventDate "2024.06.25"]
[EventType "swiss"]
[EventCountry "GER"]
[SourceTitle "playchess.com"]
[Source "ChessBase"]
[SourceQuality "1"]
[TimeControl "40/5400+30:1800+30"]

1. c4 {[%emt 0:00:03]} d6 {[%emt 0:00:11]} 2. g3 {[%emt 0:00:10]} e5 {[%emt 0:00:26]} 3. Bg2 {[%emt 0:00:17]} f5 {[%emt 0:00:30]} 4. d3 {[%emt 0:00:49]} Nf6 {[%emt 0:00:15]} 5. Nc3 {[%emt 0:00:11]} c6 {[%emt 0:00:39]} 6. e4 {[%emt 0:03:08]} Be7 {[%emt 0:01:54]} 7. Nge2 {[%emt 0:00:38]} O-O {[%emt 0:01:04] A21: English Opening: 1...e5 2 Nc3.} 8. O-O {[%emt 0:00:22]} fxe4 {[%emt 0:03:18]} 9. dxe4 {[%emt 0:01:13]} Be6 {[%emt 0:02:31]} 10. b3 {[%emt 0:00:42]} Qd7 {[%emt 0:09:49]} (10... a6 $142) 11. Ba3 {[%emt 0:03:20]} Bh3 {[%emt 0:03:21]} 12. Qd2 {[%emt 0:04:03]} Bxg2 {[%emt 0:01:41]} 13. Kxg2 {[%emt 0:00:06]} c5 {[%emt 0:03:25]} 14. Rad1 {[%emt 0:00:48]} b6 {[%emt 0:01:51]} 15. Nd5 {[%emt 0:02:15]} Na6 {[%emt 0:04:54]} 16. Nxe7+ {[%emt 0:06:05]} Qxe7 {[%emt 0:00:23]} 17. Qxd6 {[%emt 0:01:43]} Qxd6 {[%emt 0:00:57]} 18. Rxd6 {[%emt 0:00:06]} Nxe4 {[%emt 0:00:40]} 19. Rd5 {[%emt 0:01:08]} Nf6 {[%emt 0:03:24]} 20. Rxe5 {[%emt 1:13:23]} Rad8 {[%emt 0:03:02]} 21. Nc3 {[%emt 0:00:00]} Rd2 {[%emt 0:00:56]} 22. Re2 {[%emt 0:00:00]} Rxe2 {[%emt 0:01:36]} 23. Nxe2 {[%emt 0:00:00]} Rd8 {[%emt 0:00:52]} 24. Nc3 {[%emt 0:00:00]} Rd2 {[%emt 0:00:56] [#]} 25. Rd1 $16 {[%emt 0:00:00]} ({Much less strong is} 25. Bc1 Rd3 26. Nb5 Nb4) 25... Rc2 {[%emt 0:02:28]} 26. Rc1 {[%emt 0:00:00]} Rd2 {[%emt 0:00:38]} 27. Kf3 {[%emt 0:00:00]} Nc7 {[%emt 0:03:58]} 28. Ke3 {[%emt 0:00:00]} Rd8 {[%emt 0:01:31]} 29. f3 {[%emt 0:00:00]} Re8+ {[%emt 0:01:24]} 30. Ne4 {[%emt 0:00:00]} Kf7 {[%emt 0:04:05]} 31. Rd1 {[%emt 0:00:00]} Kg6 {[%emt 0:03:16]} 32. Bb2 {[%emt 0:00:00]} b5 {[%emt 0:02:17]} 33. Rd6 {[%emt 0:00:00]} bxc4 {[%emt 0:02:16]} 34. bxc4 {[%emt 0:00:00]} Ne6 {[%emt 0:01:44]} 35. Rc6 {[%emt 0:00:00]} Ng5 {[%emt 0:01:26]} 36. Bxf6 {[%emt 0:00:00]} Nxe4 {[%emt 0:02:21]} 37. fxe4 {[%emt 0:00:00]} gxf6 {[%emt 0:00:36]} 38. Rxc5 {[%emt 0:00:00]} Re7 {[%emt 0:00:37]} 39. Ra5 {[%emt 0:00:00]} Rc7 {[%emt 0:01:18]} 40. c5 {[%emt 0:00:00]} f5 {[%emt 0:01:14]} 41. exf5+ {[%emt 0:01:34]} Kxf5 {[%emt 0:30:24]} 42. c6+ {[%emt 0:02:05]} Ke6 {[%emt 0:00:38]} 43. Rc5 {[%emt 0:01:17]} Kd6 {[%emt 0:01:11]} 44. Kd4 {[%emt 0:00:23]} Ke6 {[%emt 0:00:50]} 45. Re5+ {[%emt 0:01:19]} Kd6 {[%emt 0:00:39]} 46. Rd5+ {[%emt 0:00:11]} Ke6 {[%emt 0:00:26]} 47. Kc5 {[%emt 0:00:11]} 1-0

[Event "Seniors-LEM-65 Sachsen-Anhalt 2024"]
[Site "Magdeburg"]
[Date "2024.07.04"]
[Round "4.25"]
[White "Zechel, Rolf-Ruediger"]
[Black "Grassmann, Heinz"]
[Result "1-0"]
[ECO "D05"]
[WhiteElo "1870"]
[BlackElo "1972"]
[Annotator "NA RC"]
[PlyCount "48"]
[EventDate "2024.06.25"]
[EventType "swiss"]
[EventCountry "GER"]
[SourceTitle "playchess.com"]
[Source "ChessBase"]
[SourceQuality "1"]
[TimeControl "40/5400+30:1800+30"]

1. d4 {[%emt 0:00:03]} d5 {[%emt 0:00:24]} 2. Nf3 {[%emt 0:00:13]} Nf6 {[%emt 0:00:26]} 3. e3 {[%emt 0:00:26]} e6 {[%emt 0:00:17]} 4. Nbd2 {[%emt 0:00:44]} Be7 {[%emt 0:01:04]} 5. Bd3 {[%emt 0:00:41]} b6 {[%emt 0:00:26]} 6. Ne5 {[%emt 0:03:44]} Bb7 {[%emt 0:01:46]} 7. O-O {[%emt 0:04:09]} O-O {[%emt 0:00:37]} 8. f4 {[%emt 0:04:06]} c5 {[%emt 0:01:46] D05: Colle System with ...e6.} 9. c3 {[%emt 0:01:04]} Nbd7 {[%emt 0:05:48]} 10. Qf3 {[%emt 0:00:52]} Bd6 {[%emt 0:03:06]} 11. b3 {[%emt 0:05:17]} a5 {[%emt 0:02:31]} 12. Bb2 {[%emt 0:04:24]} a4 {[%emt 0:05:48]} 13. Rab1 {[%emt 0:08:01]} axb3 {[%emt 0:08:24]} 14. axb3 {[%emt 0:00:25]} Ra2 {[%emt 0:00:35]} 15. g4 {[%emt 0:03:18]} g6 {[%emt 0:02:49]} 16. g5 {[%emt 0:08:07]} Bxe5 {[%emt 0:03:37]} 17. fxe5 {[%emt 0:02:52]} Ne4 {[%emt 0:01:00]} 18. Bxe4 {[%emt 0:04:42]} Qxg5+ {[%emt 0:00:21]} 19. Kh1 {[%emt 0:04:26]} (19. Qg3 $17 {is a better defense.} Qxg3+ 20. hxg3 dxe4 21. Nc4) 19... dxe4 {[%emt 0:00:28]} 20. Nxe4 $19 {[%emt 0:00:46]} (20. Qh3) 20... Qh4 {[%emt 0:13:12]} 21. Nf6+ {[%emt 0:01:59]} Nxf6 {[%emt 0:00:38]} 22. Qxb7 {[%emt 0:00:34]} Ng4 {[%emt 0:00:24]} 23. Qg2 {[%emt 0:04:23]} Nxe3 {[%emt 0:00:33]} 24. Qf2 {[%emt 0:00:26]} Nxf1 {[%emt 0:01:44]} 1-0

[Event "Seniors-LEM-65 Sachsen-Anhalt 2024"]
[Site "Magdeburg"]
[Date "2024.07.04"]
[Round "4.26"]
[White "Boettcher, Frank"]
[Black "Mikolajewski, Armin"]
[Result "1/2-1/2"]
[ECO "D55"]
[WhiteElo "1848"]
[BlackElo "1961"]
[Annotator "RC"]
[PlyCount "33"]
[EventDate "2024.06.25"]
[EventType "swiss"]
[EventCountry "GER"]
[SourceTitle "playchess.com"]
[Source "ChessBase"]
[SourceQuality "1"]
[TimeControl "40/5400+30:1800+30"]

1. d4 {[%emt 0:00:11]} Nf6 {[%emt 0:00:11]} 2. Nf3 {[%emt 0:00:08]} d5 {[%emt 0:00:29]} 3. c4 {[%emt 0:00:06]} e6 {[%emt 0:00:32]} 4. Bg5 {[%emt 0:00:40]} Be7 {[%emt 0:00:36]} 5. Nc3 {[%emt 0:00:21]} c6 {[%emt 0:01:08]} 6. e3 {[%emt 0:01:01]} h6 {[%emt 0:01:23]} 7. Bxf6 {[%emt 0:01:22]} Bxf6 {[%emt 0:00:16]} 8. Bd3 {[%emt 0:00:58]} Nd7 {[%emt 0:00:43]} 9. O-O {[%emt 0:00:08]} O-O {[%emt 0:03:04]} 10. Rc1 {[%emt 0:00:36]} Re8 {[%emt 0:02:22]} 11. Qb3 {[%emt 0:05:39]} Nb6 {[%emt 0:15:35]} 12. c5 {[%emt 0:06:00]} Nd7 {[%emt 0:00:48]} 13. e4 {[%emt 0:04:54]} e5 {[%emt 0:06:19]} 14. exd5 {[%emt 0:02:40]} exd4 {[%emt 0:00:24]} 15. Ne2 {[%emt 0:00:36]} cxd5 {[%emt 0:01:08]} 16. Nexd4 {[%emt 0:04:55]} Ne5 {[%emt 0:05:24]} 17. Nxe5 {[%emt 0:08:22]} 1/2-1/2

[Event "Seniors-LEM-65 Sachsen-Anhalt 2024"]
[Site "Magdeburg"]
[Date "2024.07.04"]
[Round "4.27"]
[White "Roth, Heinz Georg"]
[Black "Hess, Juergen"]
[Result "0-1"]
[ECO "C47"]
[WhiteElo "1830"]
[BlackElo "1958"]
[Annotator "NA RC"]
[PlyCount "38"]
[EventDate "2024.06.25"]
[EventType "swiss"]
[EventCountry "GER"]
[SourceTitle "playchess.com"]
[Source "ChessBase"]
[SourceQuality "1"]
[TimeControl "40/5400+30:1800+30"]

1. e4 {[%emt 0:00:04]} e5 {[%emt 0:00:09]} 2. Nf3 {[%emt 0:00:09]} Nc6 {[%emt 0:00:19]} 3. Nc3 {[%emt 0:00:10]} Nf6 {[%emt 0:01:16]} 4. d4 {[%emt 0:00:16]} exd4 {[%emt 0:02:17]} 5. Nd5 {[%emt 0:03:12]} Nb4 {[%emt 0:08:42]} 6. Nxf6+ {[%emt 0:06:50]} Qxf6 {[%emt 0:01:12]} 7. Bc4 {[%emt 0:03:02]} d5 {[%emt 0:03:22]} 8. exd5 {[%emt 0:14:12]} Bg4 {[%emt 0:11:13]} 9. a3 {[%emt 0:10:05]} Bxf3 {[%emt 0:06:40]} 10. gxf3 {[%emt 0:01:16]} Qe5+ {[%emt 0:17:45]} 11. Kf1 $17 {[%emt 0:09:36]} (11. Kd2 $1 $11 {remains equal.} Qg5+ (11... Nxd5 $2 {perishes.} 12. Re1 $18) 12. Ke1 Qe5+ 13. Kd2 Qg5+ 14. Ke2 Qe5+ 15. Kd2) 11... Nxd5 {[%emt 0:03:33]} 12. Kg2 {[%emt 0:07:53]} (12. f4 Qe6 $15) 12... O-O-O {[%emt 0:04:28]} 13. Re1 {[%emt 0:01:00]} Qh5 {[%emt 0:04:06]} 14. Bxd5 {[%emt 0:06:18]} Qxd5 {[%emt 0:02:12]} 15. Bf4 {[%emt 0:02:57]} Bd6 {[%emt 0:03:41]} 16. Bg3 {[%emt 0:00:42]} h5 {[%emt 0:06:13]} 17. Re4 {[%emt 0:03:58]} c5 {[%emt 0:03:11]} 18. Qe2 {[%emt 0:01:20]} f5 {[%emt 0:01:10]} 19. Re6 {[%emt 0:00:42]} f4 {[%emt 0:01:15]} 0-1

[Event "Seniors-LEM-65 Sachsen-Anhalt 2024"]
[Site "Magdeburg"]
[Date "2024.07.04"]
[Round "4.28"]
[White "Lehr, Thomas"]
[Black "Kluever, Horst"]
[Result "1-0"]
[ECO "C45"]
[WhiteElo "1954"]
[BlackElo "1850"]
[Annotator "NA RC"]
[PlyCount "91"]
[EventDate "2024.06.25"]
[EventType "swiss"]
[EventCountry "GER"]
[SourceTitle "playchess.com"]
[Source "ChessBase"]
[SourceQuality "1"]
[TimeControl "40/5400+30:1800+30"]

1. e4 {[%emt 0:00:05]} e5 {[%emt 0:00:21]} 2. Nf3 {[%emt 0:00:07]} Nc6 {[%emt 0:00:38]} 3. d4 {[%emt 0:00:44]} exd4 {[%emt 0:00:18]} 4. Nxd4 {[%emt 0:00:05]} Ne5 {[%emt 0:00:56]} 5. f4 {[%emt 0:16:28]} Ng6 {[%emt 0:00:16]} 6. Bc4 {[%emt 0:04:35]} d6 $16 {[%emt 0:02:36]} (6... d5 $1 $11 {keeps the balance.} 7. Bxd5 Nf6) 7. Nc3 {[%emt 0:06:29]} Bd7 {[%emt 0:03:06]} 8. Qd3 {[%emt 0:04:16]} Qf6 {[%emt 0:09:33]} 9. Nd5 {[%emt 0:04:33]} Qd8 {[%emt 0:01:06]} 10. Qb3 {[%emt 0:00:40]} c6 {[%emt 0:07:16]} 11. Nc3 {[%emt 0:10:25]} Nh6 {[%emt 0:07:33]} 12. a4 {[%emt 0:04:23]} Qb6 {[%emt 0:01:02]} 13. Nce2 {[%emt 0:06:47]} Qxb3 {[%emt 0:01:08]} 14. Bxb3 {[%emt 0:00:28]} Be7 {[%emt 0:00:31]} 15. O-O {[%emt 0:03:36]} O-O-O {[%emt 0:12:06]} 16. h3 {[%emt 0:03:54]} Rhe8 {[%emt 0:06:05]} 17. Ng3 {[%emt 0:03:43]} Bf6 {[%emt 0:07:57]} 18. c3 {[%emt 0:00:54]} c5 {[%emt 0:04:38]} 19. Nb5 {[%emt 0:02:28]} Bxb5 {[%emt 0:04:47]} 20. axb5 {[%emt 0:00:01]} Kb8 {[%emt 0:00:34]} 21. Ra4 {[%emt 0:01:36]} Ne7 {[%emt 0:01:36]} 22. Nh5 {[%emt 0:00:49]} Nc8 {[%emt 0:00:53]} 23. Nxf6 {[%emt 0:00:18]} gxf6 {[%emt 0:01:12]} 24. Bc2 {[%emt 0:03:07]} Nb6 {[%emt 0:00:46]} 25. Ra1 {[%emt 0:00:41]} Ng8 {[%emt 0:01:16]} 26. b3 {[%emt 0:01:30]} Ne7 {[%emt 0:00:42]} 27. c4 {[%emt 0:00:38]} Nec8 {[%emt 0:00:39]} 28. Bb2 {[%emt 0:00:15]} Nd7 {[%emt 0:00:55]} 29. Rad1 {[%emt 0:02:26]} Kc7 {[%emt 0:00:27]} 30. e5 {[%emt 0:06:15]} h5 {[%emt 0:04:43]} 31. exf6 {[%emt 0:02:54]} Re2 {[%emt 0:02:27]} 32. Rf2 {[%emt 0:00:21]} Rde8 {[%emt 0:01:07]} 33. Kf1 {[%emt 0:00:20]} Rxf2+ {[%emt 0:02:42]} 34. Kxf2 {[%emt 0:00:08]} Rh8 {[%emt 0:00:30]} 35. Kf3 {[%emt 0:03:33]} Rh6 {[%emt 0:00:32]} 36. Bf5 {[%emt 0:00:47]} Ncb6 {[%emt 0:01:39]} 37. Re1 {[%emt 0:00:53]} Rh8 {[%emt 0:02:41]} 38. Re7 {[%emt 0:02:28]} Rf8 {[%emt 0:00:23]} 39. Bc3 {[%emt 0:01:52]} Kd8 {[%emt 0:01:52]} 40. Ba5 {[%emt 0:01:15]} Nxf6 {[%emt 0:02:19]} 41. Rxb7 {[%emt 0:33:21]} Ke8 {[%emt 0:33:49]} 42. Rxa7 {[%emt 0:00:00]} Nbd7 {[%emt 0:00:00]} 43. Bxd7+ {[%emt 0:00:00]} Nxd7 {[%emt 0:00:00]} 44. Ra8+ {[%emt 0:00:00]} Ke7 {[%emt 0:00:00]} 45. Rxf8 {[%emt 0:00:00]} Kxf8 {[%emt 0:00:00]} 46. Bc7 {[%emt 0:00:00]} 1-0

[Event "Seniors-LEM-65 Sachsen-Anhalt 2024"]
[Site "Magdeburg"]
[Date "2024.07.04"]
[Round "4.28"]
[White "Lehr, Thomas"]
[Black "Kluever, Horst"]
[Result "*"]
[ECO "C45"]
[WhiteElo "1954"]
[BlackElo "1850"]
[Annotator "NA RC"]
[PlyCount "28"]
[EventDate "2024.06.25"]
[EventType "swiss"]
[EventCountry "GER"]
[SourceTitle "playchess.com"]
[Source "ChessBase"]
[SourceQuality "1"]
[TimeControl "40/5400+30:1800+30"]

1. e4 {[%emt 0:00:05]} e5 {[%emt 0:00:21]} 2. Nf3 {[%emt 0:00:07]} Nc6 {[%emt 0:00:38]} 3. d4 {[%emt 0:00:44]} exd4 {[%emt 1:31:01]} 4. Nxd4 {[%emt 0:00:05]} Ne5 {[%emt 0:00:56]} 5. f4 {[%emt 0:16:28]} Ng6 {[%emt 0:00:16]} 6. Bc4 {[%emt 0:04:35]} d6 $16 {[%emt 1:31:01]} (6... d5 $1 $11 {keeps the balance.} 7. Bxd5 Nf6) 7. Nc3 {[%emt 0:06:29]} Bd7 {[%emt 0:03:06]} 8. Qd3 {[%emt 0:04:16]} Qf6 {[%emt 1:26:19]} 9. Nd5 {[%emt 0:04:33]} Qd8 {[%emt 1:17:16]} 10. Qb3 {[%emt 0:00:40]} c6 {[%emt 0:07:16]} 11. Nc3 {[%emt 0:10:25]} Nh6 {[%emt 0:07:33]} 12. a4 {[%emt 0:04:23]} Qb6 {[%emt 1:02:51]} 13. Nce2 {[%emt 0:06:47]} Qb5 {[%emt 1:02:19]} 14. Qb4 Qxb4+ {[%emt 0:00:00]} *